fUSD/lending_fUSD_20260428
["ID","MTS","AMOUNT","RATE_DAILY","PERIOD"]
[421289637,1777355445334,-155.586719,0.0001078,2]
[421289638,1777355445344,-150.0,0.00010786,2]
[421289639,1777355445353,-1534.210849,0.00010788,2]
[421289640,1777355445363,-1534.210849,0.00010788,2]
[421289641,1777355445372,-1534.210849,0.00010788,2]
[421289642,1777355445381,-1534.210849,0.00010788,2]
[421289643,1777355445391,-151.0,0.00010797,2]
[421289644,1777355445401,-300.0,0.000108,3]
[421289645,1777355445410,-150.0,0.000108,2]
[421289646,1777355445420,-285.2750907,0.000108,2]
[421289647,1777355445429,-150.0,0.00010803,2]
[421289648,1777355445439,-150.0,0.00010819,2]
[421289649,1777355445448,-150.0,0.00010827,2]
[421289650,1777355445458,-150.0,0.00010827,2]
[421289651,1777355445467,-150.0,0.00010827,2]
[421289652,1777355445477,-150.0,0.00010827,2]
[421289653,1777355445486,-150.0,0.00010836,2]
[421289654,1777355445496,-150.0,0.00010852,2]
[421289655,1777355445505,-150.0,0.00010869,2]
[421289656,1777355445514,-150.0,0.00010879,2]
[421289657,1777355445524,-150.0,0.00010885,2]
[421289658,1777355445533,-150.0,0.00010891,2]
[421289659,1777355445543,-700.0,0.000109,3]
[421289660,1777355445553,-2147.04228997,0.000109,2]
[421289661,1777355445563,-2147.0422899,0.000109,2]
[421289662,1777355445573,-2147.0422899,0.000109,2]
[421289663,1777355445583,-2147.0422899,0.000109,2]
[421289664,1777355445592,-2147.0422899,0.000109,2]
[421289665,1777355445602,-183.299406,0.000109,2]
[421289666,1777355445611,-183.299406,0.000109,2]
[421289667,1777355445622,-183.299406,0.000109,2]
[421289668,1777355445631,-183.299406,0.000109,2]
[421289669,1777355445641,-656.673552,0.000109,2]
[421289670,1777355445650,-656.673552,0.000109,2]
[421289671,1777355445660,-656.673552,0.000109,2]
[421289672,1777355445670,-656.673552,0.000109,2]
[421289673,1777355445679,-150.0,0.00010902,2]
[421289674,1777355445689,-150.0,0.00010918,2]
[421289675,1777355445699,-151.0,0.00010922,2]
[421289676,1777355445708,-151.0,0.00010922,2]
[421289677,1777355445718,-155.586719,0.00010922,2]
[421289678,1777355445727,-151.0,0.00010922,2]
[421289679,1777355445736,-155.586719,0.00010922,2]
[421289680,1777355445745,-151.0,0.00010922,2]
[421289681,1777355445755,-155.586719,0.00010922,2]
[421289682,1777355445764,-155.586719,0.00010922,2]
[421289683,1777355445774,-150.0,0.00010933,2]
[421289684,1777355445784,-150.0,0.00010935,2]
[421289685,1777355445793,-150.0,0.00010951,2]
[421289686,1777355445803,-500.0,0.00010959,2]
[421289687,1777355445814,-358.242194,0.00010959,2]
[421289688,1777355445823,-358.242194,0.00010959,2]
[421289689,1777355445833,-358.242194,0.00010959,2]
[421289690,1777355445842,-358.242194,0.00010959,2]
[421289691,1777355445851,-227.26162,0.00010959,2]
[421289692,1777355445861,-227.26162,0.00010959,2]
[421289693,1777355445875,-227.26162,0.00010959,2]
[421289694,1777355445884,-227.26162,0.00010959,2]
[421289695,1777355445894,-227.26162,0.00010959,2]
[421289696,1777355445904,-227.26162,0.00010959,2]
[421289697,1777355445914,-227.26162,0.00010959,2]
[421289698,1777355445924,-227.26162,0.00010959,2]
[421289699,1777355445933,-227.26162,0.00010959,2]
[421289700,1777355445942,-227.26162,0.00010959,2]
[421289701,1777355445952,-227.26162,0.00010959,2]
[421289702,1777355445962,-227.26162,0.00010959,2]
[421289703,1777355445971,-645.649457,0.00010959,2]
[421289704,1777355445981,-645.649457,0.00010959,2]
[421289705,1777355445991,-645.649457,0.00010959,2]
[421289706,1777355446000,-645.649457,0.00010959,2]
[421289707,1777355446010,-645.649457,0.00010959,2]
[421289708,1777355446019,-645.649457,0.00010959,2]
[421289709,1777355446029,-645.649457,0.00010959,2]
[421289710,1777355446038,-645.649457,0.00010959,2]
[421289711,1777355446049,-645.649457,0.00010959,2]
[421289712,1777355446059,-645.649457,0.00010959,2]
[421289713,1777355446068,-645.649457,0.00010959,2]
[421289714,1777355446077,-645.649457,0.00010959,2]
[421289715,1777355446086,-358.242194,0.00010959,2]
[421289716,1777355446096,-358.242194,0.00010959,2]
[421289717,1777355446106,-358.242194,0.00010959,2]
[421289718,1777355446115,-358.242194,0.00010959,2]
[421289719,1777355446125,-150.0,0.00010968,2]
[421289720,1777355446134,-150.0,0.00010983,2]
[421289721,1777355446144,-150.0,0.00010984,2]
[421289722,1777355446153,-876.7,0.0001099,2]
[421289723,1777355446163,-500.0,0.00011,2]
[421289724,1777355446172,-500.0,0.00011,2]
[421289725,1777355446182,-500.0,0.00011,2]
[421289726,1777355446192,-516.63,0.00011,2]
[421289727,1777355446201,-150.0,0.00011001,2]
[421289728,1777355446210,-2189.46251137,0.00011008,2]
[421289729,1777355446220,-150.0,0.00011017,2]
[421289730,1777355446229,-150.0,0.00011017,2]
[421289731,1777355446239,-150.0,0.00011017,2]
[421289732,1777355446248,-150.0,0.00011034,2]
[421289733,1777355446258,-150.0,0.0001105,2]
[421289734,1777355446268,-150.0,0.00011067,2]
[421289735,1777355446277,-150.0,0.00011067,2]
[421289736,1777355446287,-667.38523823,0.00011072,2]
[421289737,1777355446296,-500.0,0.00011073,2]
[421289738,1777355446306,-500.0,0.00011073,2]
[421289739,1777355446315,-194.72792766,0.00011081,2]
[421289740,1777355446329,-150.0,0.00011083,2]
[421289741,1777355446338,-2160.0,0.00011085,5]
[421289742,1777355446348,-155.0,0.00011086,2]
[421289743,1777355446357,-150.0,0.00011086,2]
[421289744,1777355446367,-151.0,0.00011096,2]
[421289745,1777355446377,-200.0,0.00011096,2]
[421289746,1777355446386,-300.0,0.00011098,2]
[421289747,1777355446396,-300.0,0.00011098,2]
[421289748,1777355446405,-666.0,0.00011098,2]
[421289749,1777355446415,-305.78147167,0.00011098,2]
[421289750,1777355446425,-300.0,0.00011098,2]
[421289751,1777355446434,-300.0,0.00011098,2]
[421289752,1777355446444,-666.0,0.00011098,2]
[421289753,1777355446453,-83799.91093176,0.00011099,2]
[421289754,1777355446463,-83799.91093172,0.00011099,2]
[421289755,1777355446472,-151.0,0.00011099,2]
[421289756,1777355446482,-151.0,0.00011099,2]
[421289757,1777355446492,-151.0,0.00011099,2]
[421289758,1777355446501,-151.0,0.00011099,2]
[421289759,1777355446510,-155.586719,0.00011099,2]
[421289760,1777355446520,-151.0,0.00011099,2]
[421289761,1777355446530,-155.586719,0.00011099,2]
[421289762,1777355446539,-165.341426,0.00011099,2]
[421289763,1777355446549,-155.586719,0.00011099,2]
[421289764,1777355446559,-155.586719,0.00011099,2]
[421289765,1777355446568,-219.998398,0.00011099,2]
[421289766,1777355446578,-155.586719,0.00011099,2]
[421289767,1777355446587,-155.586719,0.00011099,2]
[421289768,1777355446597,-155.586719,0.00011099,2]
[421289769,1777355446606,-155.586713,0.00011099,2]
[421289770,1777355446615,-227.26162,0.00011099,2]
[421289771,1777355446625,-227.26162,0.00011099,2]
[421289772,1777355446634,-227.26162,0.00011099,2]
[421289773,1777355446645,-227.26162,0.00011099,2]
[421289774,1777355446654,-227.26162,0.00011099,2]
[421289775,1777355446664,-227.26162,0.00011099,2]
[421289776,1777355446674,-227.26162,0.00011099,2]
[421289777,1777355446683,-227.261614,0.00011099,2]
[421289778,1777355446693,-645.649457,0.00011099,2]
[421289779,1777355446703,-645.649457,0.00011099,2]
[421289780,1777355446713,-645.649457,0.00011099,2]
[421289781,1777355446723,-645.649457,0.00011099,2]
[421289782,1777355446733,-645.649457,0.00011099,2]
[421289783,1777355446742,-645.649457,0.00011099,2]
[421289784,1777355446752,-645.649457,0.00011099,2]
[421289785,1777355446765,-645.649462,0.00011099,2]
[421289786,1777355446776,-183.299406,0.00011099,2]
[421289787,1777355446785,-183.299406,0.00011099,2]
[421289788,1777355446795,-183.299406,0.00011099,2]
[421289789,1777355446805,-183.299406,0.00011099,2]
[421289790,1777355446815,-183.299406,0.00011099,2]
[421289791,1777355446825,-183.299406,0.00011099,2]
[421289792,1777355446835,-183.299406,0.00011099,2]
[421289793,1777355446845,-183.299408,0.00011099,2]
[421289794,1777355446855,-656.673552,0.00011099,2]
[421289795,1777355446865,-656.673552,0.00011099,2]
[421289796,1777355446875,-656.673552,0.00011099,2]
[421289797,1777355446885,-656.673552,0.00011099,2]
[421289798,1777355446895,-656.673552,0.00011099,2]
[421289799,1777355446904,-656.673552,0.00011099,2]
[421289800,1777355446915,-656.673552,0.00011099,2]
[421289801,1777355446925,-656.673548,0.00011099,2]
[421289802,1777355446934,-1534.210849,0.00011099,2]
[421289803,1777355446945,-1534.210849,0.00011099,2]
[421289804,1777355446954,-1534.210849,0.00011099,2]
[421289805,1777355446964,-1534.210849,0.00011099,2]
[421289806,1777355446973,-1534.210849,0.00011099,2]
[421289807,1777355446983,-1534.210849,0.00011099,2]
[421289808,1777355446992,-1534.210849,0.00011099,2]
[421289809,1777355447002,-1534.210843,0.00011099,2]
[421289810,1777355447012,-150.0,0.000111,2]
[421289811,1777355447022,-181.958,0.000111,2]
[421289812,1777355447032,-300.0,0.000111,2]
[421289813,1777355447041,-666.0,0.000111,2]
[421289814,1777355447052,-2764.341,0.00011101,2]
[421289815,1777355447061,-150.0,0.00011112,2]
[421289816,1777355447071,-150.0,0.00011116,2]
[421289817,1777355447081,-2451.0,0.00011127,5]
[421289818,1777355447091,-150.0,0.00011133,2]
[421289819,1777355447102,-150.0,0.00011144,2]
[421289820,1777355447111,-2551.0,0.00011148,5]
[421289821,1777355447122,-150.0,0.00011149,2]
[421289822,1777355447132,-150.0,0.00011166,2]
[421289823,1777355447141,-2147.0422899,0.00011168,2]
[421289824,1777355447151,-300.0,0.00011176,2]
[421289825,1777355447160,-300.0,0.00011176,2]
[421289826,1777355447170,-671.24947379,0.00011176,2]
[421289827,1777355447180,-150.0,0.00011183,2]
[421289828,1777355447190,-150.0,0.0001119,2]
[421289829,1777355447200,-300.0,0.00011199,2]
[421289830,1777355447213,-300.0,0.00011199,2]
[421289831,1777355447223,-150.0,0.00011199,2]
[421289832,1777355447232,-150.0,0.000112,2]
[421289833,1777355447242,-358.242194,0.000112,2]
[421289834,1777355447252,-358.242194,0.000112,2]
[421289835,1777355447262,-358.242194,0.000112,2]
[421289836,1777355447271,-358.242194,0.000112,2]
[421289837,1777355447282,-1265.94140222,0.000112,2]
[421289838,1777355447291,-959.36298145,0.000112,2]
[421289839,1777355447300,-904.16608671,0.000112,2]
[421289840,1777355447310,-1100.0,0.000112,4]
[421289841,1777355447320,-150.0,0.00011207,2]
[421289842,1777355447330,-150.0,0.00011216,2]
[421289843,1777355447340,-150.0,0.00011219,2]
[421289844,1777355447350,-150.0,0.00011232,2]
[421289845,1777355447360,-150.0,0.00011249,2]
[421289846,1777355447370,-876.7,0.00011264,2]
[421289847,1777355447379,-150.0,0.00011265,2]
[421289848,1777355447389,-150.0,0.00011271,2]
[421289849,1777355447399,-150.0,0.00011282,2]
[421289850,1777355447409,-150.0,0.00011294,2]
[421289851,1777355447420,-151.0,0.00011297,2]
[421289852,1777355447430,-150.0,0.00011298,2]
[421289853,1777355447440,-358.242194,0.000113,2]
[421289854,1777355447450,-358.242194,0.000113,2]
[421289855,1777355447460,-358.242194,0.000113,2]
[421289856,1777355447470,-358.242194,0.000113,2]
[421289857,1777355447480,-1500.0,0.000113,4]
[421289858,1777355447490,-300.0,0.00011305,2]
[421289859,1777355447501,-2351.0,0.00011308,2]
[421289860,1777355447511,-587.0,0.00011308,2]
[421289861,1777355447521,-433.0,0.00011309,2]
[421289862,1777355447531,-587.0,0.00011309,2]
[421289863,1777355447541,-150.0,0.00011315,2]
[421289864,1777355447551,-150.0,0.00011331,2]
[421289865,1777355447560,-300.0,0.00011332,2]
[421289866,1777355447570,-300.0,0.00011332,2]
[421289867,1777355447580,-150.0,0.00011333,2]
[421289868,1777355447591,-150.0,0.00011348,2]
[421289869,1777355447600,-150.0,0.00011364,2]
[421289870,1777355447611,-358.242194,0.00011367,2]
[421289871,1777355447621,-358.242194,0.00011367,2]
[421289872,1777355447632,-358.242194,0.00011367,2]
[421289873,1777355447642,-358.242184,0.00011367,2]
[421289874,1777355447652,-150.0,0.00011381,2]
[421289875,1777355447662,-150.0,0.00011397,2]
[421289876,1777355447675,-151.06104443,0.00011397,2]
[421289877,1777355447687,-150.0,0.00011397,2]
[421289878,1777355447697,-150.0,0.00011397,2]
[421289879,1777355447708,-150.0,0.00011397,2]
[421289880,1777355447718,-150.0,0.00011397,2]
[421289881,1777355447728,-150.0,0.00011397,2]
[421289882,1777355447738,-150.0,0.00011397,2]
[421289883,1777355447748,-195.0,0.00011397,2]
[421289884,1777355447757,-300.0,0.00011399,2]
[421289885,1777355447767,-41483.70838346,0.000114,2]
[421289886,1777355447776,-1900.0,0.000114,4]
[421289887,1777355447785,-600.0,0.00011426,2]
[421289888,1777355447794,-150.0,0.00011467,2]
[421289889,1777355447804,-500.0,0.00011473,2]
[421289890,1777355447814,-300.0,0.000115,4]
[421289891,1777355447823,-2147.0422899,0.00011534,2]
[421289892,1777355447834,-876.7,0.00011538,2]
[421289893,1777355447843,-150.0,0.000116,2]
[421289894,1777355447853,-300.0,0.000116,4]
[421289895,1777355447863,-300.0,0.00011615,2]
[421289896,1777355447873,-1000.0,0.00011621,2]
[421289897,1777355447882,-404.13211917,0.00011621,2]
[421289898,1777355447892,-201.93286099,0.00011629,2]
[421289899,1777355447902,-200.0,0.00011644,2]
[421289900,1777355447911,-182.0,0.00011685,3]
[421289901,1777355447921,-1110.0,0.00011685,3]
[421289902,1777355447931,-300.0,0.000117,4]
[421289903,1777355447941,-300.0,0.00011721,2]
[421289904,1777355447950,-150.0,0.00011733,2]
[421289905,1777355447960,-300.0,0.000118,4]
[421289906,1777355447970,-876.7,0.00011812,2]
[421289907,1777355447979,-150.0,0.00011852,2]
[421289908,1777355447989,-150.0,0.00011852,2]
[421289909,1777355447999,-150.0,0.00011852,2]
[421289910,1777355448009,-150.0,0.00011852,2]
[421289911,1777355448018,-150.0,0.00011867,2]
[421289912,1777355448027,-151.0,0.00011897,2]
[421289913,1777355448037,-1004.0,0.000119,4]
[421289914,1777355448261,-2147.0422899,0.000119,2]
[421289915,1777355448271,-8042.65237169,0.000119,2]
[421289916,1777355448281,-385.4730174,0.000119,2]
[421289917,1777355448292,-150.0,0.00011924,2]
[421289918,1777355448302,-150.0,0.00011924,2]
[421289919,1777355448312,-12609.0,0.00011973,2]
[421289920,1777355448321,-401.0,0.00011973,2]
[421289921,1777355448330,-501.56215985,0.00011973,2]
[421289922,1777355448340,-500.0,0.00011973,2]
[421289923,1777355448350,-500.0,0.00011973,2]
[421289924,1777355448359,-500.0,0.00011973,2]
[421289925,1777355448368,-500.0,0.00011973,2]
[421289926,1777355448378,-500.0,0.00011973,2]
[421289927,1777355448388,-1215.68700482,0.0001199,2]
[421289928,1777355448397,-1215.68700482,0.0001199,2]
[421289929,1777355448407,-1215.68700482,0.0001199,2]
[421289930,1777355448416,-151.0,0.00011997,2]
[421289931,1777355448425,-229.12127123,0.00011999,3]
[421289932,1777355448435,-1131.91873382,0.00011999,3]
[421289933,1777355448444,-1131.91873381,0.00011999,3]
[421289934,1777355448454,-1131.91873382,0.00011999,3]
[421289935,1777355448463,-1199007.48958965,0.00012,2]
[421289936,1777355448481,-989.29856,0.00012,2]
[421289937,1777355448510,-887.00102635,0.00012,2]
[421289938,1777355448592,-2814.95504579,0.000119,2]
[421289940,1777355448603,-27657.05256346,0.00012,2]
[421289941,1777355448616,-716.64808136,0.00012,2]
[421289942,1777355448628,-1164.25,0.00012,2]
[421289943,1777355448640,-1057.83701526,0.00012,2]
[421289944,1777355448655,-303.08092762,0.00012,2]
[421289945,1777355448667,-431.69864103,0.00012,2]
[421289946,1777355448679,-2503.20420611,0.00012,2]
[421289947,1777355448691,-379.86433002,0.00012,2]
[421289948,1777355448703,-1956.07784124,0.00012,2]
[421289949,1777355448715,-668.384999,0.00012,2]
[421289950,1777355461267,-344.752932,0.00010858,2]
[421289951,1777355461298,-150.0,0.00010913,2]
[421289952,1777355461328,-151.0,0.00010913,2]
[421289953,1777355461390,-8708.504136,0.00011099,2]
[421289966,1777356631953,-161.16396748,9.04e-05,2]
[421289967,1777356631963,-267.0,9.04e-05,2]
[421289968,1777356631976,-1211.82623289,9.389e-05,2]
[421289969,1777356631987,-1403.85738872,9.389e-05,2]
[421289970,1777356632006,-407.7875021,9.389e-05,2]
[421289971,1777356632060,-271.17317545,9.389e-05,2]
[421289972,1777356632116,-1705.35570084,9.389e-05,2]
[421289973,1777356632125,-296.69086865,9.739e-05,2]
[421289974,1777356632137,-281.51837443,9.739e-05,2]
[421289975,1777356632146,-373.21063129,9.742e-05,2]
[421289976,1777356632159,-1683.43546483,9.742e-05,2]
[421289977,1777356632168,-300.0,9.943e-05,2]
[421289978,1777356632178,-3235.36411779,9.944e-05,2]
[421289979,1777356632190,-1764.63588221,9.944e-05,2]
[421289980,1777356632199,-250.0,9.944e-05,2]
[421289981,1777356632209,-300.26033299,9.944e-05,2]
[421289982,1777356632222,-411.63262183,9.944e-05,2]
[421289983,1777356632246,-88.36737817,9.944e-05,2]
[421289984,1777356632258,-250.0,0.00010042,2]
[421289985,1777356632268,-350.79398387,0.00010541,2]
[421289986,1777356632279,-149.20601613,0.00010541,2]
[421289987,1777356632289,-150.0,0.00010693,2]
[421289988,1777356632298,-231.37192932,0.00010693,2]
[421289996,1777356638311,-968.62807068,0.00010693,2]
[421289997,1777356638321,-200.0,0.00010694,2]
[421289998,1777356638331,-151.0,0.00010694,2]
[421289999,1777356638340,-158.67167854,0.00010694,2]
[421290000,1777356638350,-151.0,0.00010694,2]
[421290001,1777356638359,-174.61919141,0.00010694,2]
[421290002,1777356638369,-38566.37307138,0.000107,2]
[421290003,1777356638380,-4131.57449147,0.000107,2]
[421290004,1777356638392,-650.24869359,0.000107,2]
[421290005,1777356638416,-919.16013572,0.000107,2]
[421290008,1777356640348,-500.0,0.0001063,2]
[421290009,1777356640357,-2638.21292916,0.000107,2]
[421290010,1777356640368,-2943.95635846,0.000107,2]
[421290011,1777356640379,-5239.89376426,0.000107,2]
[421290012,1777356640504,-745.1344488,0.000107,2]
[421290013,1777356640820,-43026.04108691,0.000107,2]
[421290014,1777356640833,-380.05376625,0.000107,2]
[421290026,1777356643084,-522.62702627,0.000107,2]
[421290027,1777356643189,-2300.18457912,0.000107,2]
[421290028,1777356643200,-343.10411232,0.000107,2]
[421290029,1777356643211,-982.07925712,0.000107,2]
[421290030,1777356643293,-1141.95986912,0.000107,2]
[421290031,1777356643305,-387.5,0.000107,2]
[421290032,1777356643316,-1220.52685329,0.000107,2]
[421290035,1777356646538,-14332.53756697,0.000107,2]
[421290036,1777356646592,-1808.3205596,0.000107,2]
[421290037,1777356646604,-625.54012998,0.000107,2]
[421290038,1777356646615,-4040.4434,0.000107,2]
[421290039,1777356646647,-761.25738331,0.000107,2]
[421290040,1777356646658,-289.53899997,0.000107,2]
[421290087,1777356660131,-10000.01,0.000107,2]
[421290090,1777357832062,-344.752932,9.772e-05,2]
[421290091,1777357832073,-44.0794425,9.772e-05,2]
[421290092,1777357832088,-231.9205575,9.772e-05,2]
[421290093,1777357832097,-160.6,9.871e-05,2]
[421290094,1777357832107,-378.1594425,9.871e-05,2]
[421290095,1777357832123,-1725.619124,9.871e-05,2]
[421290096,1777357832132,-214.14,0.00010259,2]
[421290097,1777357832141,-300.0,0.00010299,2]
[421290098,1777357832151,-1200.0,0.00010299,2]
[421290099,1777357832160,-1336.0968406,0.000103,2]
[421290100,1777357832181,-1206.96082785,0.000103,2]
[421290101,1777357832193,-2412.11522595,0.000103,2]
[421290102,1777357832205,-1142.64297778,0.000103,2]
[421290103,1777357832217,-301.48251273,0.000103,2]
[421290104,1777357832229,-3600.70161509,0.000103,2]
[421290105,1777357832238,-150.0,0.0001043,2]
[421290106,1777357832247,-2211.472,0.00010478,2]
[421290107,1777357832257,-181.958,0.00010478,2]
[421290108,1777357832268,-123.20530238,0.00010478,2]
[421290109,1777357832346,-26.79469762,0.00010478,2]
[421290110,1777357832355,-14603.74813709,0.00010479,2]
[421290111,1777357832404,-1065.16227668,0.00010479,2]
[421290112,1777357832415,-458.44747329,0.00010479,2]
[421290113,1777357832427,-1950.17403298,0.00010479,2]
[421290114,1777357832438,-3698.33092069,0.00010479,2]
[421290115,1777357832449,-2616.10127688,0.00010479,2]
[421290116,1777357832460,-574.81083747,0.00010479,2]
[421290142,1777357838284,-571.18927001,0.00010479,2]
[421290143,1777357838338,-1165.55,0.00010479,2]
[421290144,1777357838610,-4097.43696543,0.00010479,2]
[421290145,1777357838622,-2494.9813895,0.00010479,2]
[421290146,1777357838670,-503.47737862,0.00010479,2]
[421290147,1777357838681,-1150.03513351,0.00010479,2]
[421290157,1777357840454,-3056.19022377,0.00010479,2]
[421290158,1777357840466,-4323.43327946,0.00010479,2]
[421290159,1777357840479,-564.11572434,0.00010479,2]
[421290160,1777357840491,-8441.88632382,0.00010479,2]
[421290161,1777357840510,-504.38,0.00010479,2]
[421290162,1777357841029,-1738.02322196,0.00010479,2]
[421290163,1777357841041,-417.67142879,0.00010479,2]
[421290164,1777357841054,-1127.06611192,0.00010479,2]
[421290165,1777357841074,-1208.41684316,0.00010479,2]
[421290166,1777357841086,-3302.40057009,0.00010479,2]
[421290179,1777357843292,-28091.85021581,0.00010479,2]
[421290180,1777357843301,-6958.35852064,0.000106,2]
[421290181,1777357843314,-30983.49026162,0.000106,2]
[421290182,1777357843399,-343.07272125,0.000106,2]
[421290196,1777357846737,-89781.23337309,0.000106,2]
[421290197,1777357846795,-1603.5515236,0.000106,2]
[421290198,1777357846806,-1295.79346964,0.000106,2]
[421290241,1777359032858,-227.19583098,0.0001,2]
[421290242,1777359032868,-278.51,0.00010021,2]
[421290243,1777359032878,-185.54703348,0.00010109,2]
[421290244,1777359032890,-114.45296652,0.00010109,2]
[421290245,1777359032899,-1200.0,0.00010109,2]
[421290246,1777359032908,-150.0,0.0001011,2]
[421290247,1777359032918,-150.0,0.0001011,2]
[421290248,1777359032927,-150.0,0.0001011,2]
[421290249,1777359032936,-150.0,0.0001011,2]
[421290250,1777359032945,-150.0,0.0001011,2]
[421290251,1777359032954,-150.49628327,0.0001011,2]
[421290252,1777359032963,-150.0,0.0001011,2]
[421290253,1777359032973,-150.0,0.0001011,2]
[421290254,1777359032982,-150.0,0.0001011,2]
[421290255,1777359032991,-500.0,0.00010301,2]
[421290256,1777359033000,-503.0,0.00010384,2]
[421290257,1777359033009,-231.89625079,0.000104,2]
[421290259,1777359033371,-524.30051517,0.000104,2]
[421290260,1777359033381,-344.22780483,0.0001043,2]
[421290261,1777359033392,-254.14013485,0.0001043,2]
[421290262,1777359033404,-369.98931999,0.0001043,2]
[421290263,1777359033415,-4031.64274033,0.0001043,2]
[421290264,1777359033425,-150.0,0.00010484,2]
[421290265,1777359033434,-426.96321829,0.00010519,2]
[421290266,1777359033443,-200.0,0.00010524,2]
[421290267,1777359033453,-150.0,0.00010528,2]
[421290268,1777359033462,-11315.715628,0.00010529,2]
[421290269,1777359033472,-205.0,0.00010529,2]
[421290270,1777359033481,-350.69,0.00010529,2]
[421290271,1777359033490,-181.959,0.00010529,2]
[421290272,1777359033501,-1210.93804525,0.00010529,2]
[421290273,1777359033513,-558.23995475,0.00010529,2]
[421290274,1777359033526,-1010.21770423,0.00010529,2]
[421290275,1777359033538,-405.21062676,0.00010529,2]
[421290276,1777359033549,-125.13848041,0.00010529,2]
[421290277,1777359033558,-802.41681573,0.00010529,2]
[421290278,1777359033569,-19608.05400023,0.00010529,2]
[421290279,1777359033581,-343.29292514,0.00010529,2]
[421290280,1777359033592,-1870.88949691,0.00010529,2]
[421290281,1777359033604,-1015.04698736,0.00010529,2]
[421290282,1777359033615,-333.2607817,0.00010529,2]
[421290285,1777359038459,-434.94836,0.00010529,2]
[421290286,1777359038471,-78035.0,0.00010529,2]
[421290287,1777359038565,-1230.72968212,0.00010529,2]
[421290288,1777359038619,-446.26987052,0.00010529,2]
[421290289,1777359040504,-277.1987,0.00010529,2]
[421290290,1777359040557,-269297.66426544,0.00010529,2]
[421290291,1777359040822,-356.90157413,0.00010529,2]
[421290292,1777359041033,-632.29917851,0.00010529,2]
[421290293,1777359041044,-2878.09324054,0.00010529,2]
[421290294,1777359041056,-731.75111825,0.00010529,2]
[421290295,1777359041071,-1386.70499995,0.00010529,2]
[421290323,1777359044041,-5038.18168835,0.00010529,2]
[421290324,1777359044064,-41049.2077956,0.00010529,2]
[421290325,1777359044084,-630.2890447,0.00010529,2]
[421290326,1777359044096,-842.17053239,0.00010529,2]
[421290327,1777359044108,-931.86771549,0.00010529,2]
[421290328,1777359044126,-1760.7774881,0.00010529,2]
[421290329,1777359044139,-266155.17623414,0.00010529,2]
[421290330,1777359044149,-250.0,0.00010529,2]
[421290331,1777359044159,-34382.76638016,0.0001053,2]
[421290334,1777359046529,-494.5,0.0001053,2]
[421290335,1777359046583,-76979.92044294,0.0001053,2]
[421290336,1777359046594,-8954.41122524,0.0001053,2]
[421290337,1777359046607,-6245.44649934,0.0001053,2]
[421290338,1777359046693,-330.0695548,0.0001053,2]
[421290339,1777359046706,-146265.94831166,0.0001053,2]
[421290340,1777359046717,-41498.27906854,0.0001053,2]
[421290341,1777359046748,-286.60100561,0.0001053,2]
[421290342,1777359046760,-760.0,0.0001053,2]
[421290343,1777359046803,-20592.60526196,0.0001053,2]
[421290344,1777359047121,-8999.99999353,0.0001053,2]
[421290346,1777359165807,441.23,0.0001,30]
[421290354,1777359496933,10000.01,8e-05,2]
[421290355,1777359496962,8649.55408169,8e-05,2]
[421290357,1777359822561,-300.59920182,9.7e-05,2]
[421290358,1777359822581,-200.0,9.7e-05,2]
[421290359,1777359822601,-507.70482113,9.7e-05,2]
[421290360,1777359822628,-164.0,0.0001,3]
[421290361,1777359822650,-1058.0,0.0001,3]